bitfinex-derivatives/quotes_SOLF0:USTF0_20250514
["timestamp","ask_amount","ask_price","bid_price","bid_amount"]
[1747181759205,5.4538,183.34,183.28,59.4]
[1747181760600,5.4533,183.35,183.28,59.4]
[1747181760803,118.8,183.36,183.28,59.4]
[1747181761002,5.4532,183.35,183.32,5.4541]
[1747181762006,124.2529,183.36,183.32,5.4541]
[1747181762202,118.8,183.36,183.33,5.4538]
[1747181762413,59.38,183.4,183.28,59.4]
[1747181762704,5.4519,183.4,183.36,5.4526]
[1747181763005,5.4519,183.4,183.33,59.4]
[1747181763303,5.452,183.39,183.35,5.4529]
[1747181763503,5.452,183.39,183.33,59.4]
[1747181764103,5.452,183.39,183.36,5.4527]
[1747181764309,5.4518,183.4,183.33,59.4]
[1747181764699,5.4515,183.41,183.33,59.4]
[1747181764903,120.4718,183.42,183.33,59.4]
[1747181765798,1.7679,183.44,183.33,59.4]
[1747181766108,61.1279,183.44,183.33,59.4]
[1747181766404,5.4512,183.42,183.33,59.4]
[1747181767808,5.4514,183.41,183.38,5.452]
[1747181768005,1.7679,183.44,183.33,59.4]
[1747181768308,118.74,183.45,183.33,59.4]
[1747181768607,59.4,183.45,183.33,59.4]
[1747181768808,59.34,183.47,183.33,282.4]
[1747181769908,5.4502,183.45,183.33,282.4]
[1747181770309,118.72,183.49,183.33,282.4]
[1747181771206,5.45,183.46,183.43,5.4507]
[1747181771908,59.38,183.49,183.4,59.38]
[1747181772213,59.34,183.52,183.4,59.38]
[1747181772417,5.4489,183.5,183.46,5.4497]
[1747181772603,59.34,183.52,183.46,5.4497]
[1747181772809,59.34,183.52,183.4,59.38]
[1747181773003,59.38,183.53,183.4,59.38]
[1747181773511,5.4475,183.55,183.51,5.4483]
[1747181773813,59.32,183.56,183.48,59.38]
[1747181774214,59.32,183.56,183.5,5.4487]
[1747181774417,3.7069,183.57,183.48,59.38]
[1747181774608,5.4473,183.55,183.51,5.4483]
[1747181774807,1.8643,183.57,183.51,5.4483]
[1747181775216,5.4476,183.54,183.51,5.4483]
[1747181775811,1.8643,183.57,183.48,59.38]
[1747181776815,1.8643,183.57,183.49,5.449]
[1747181777515,1.8643,183.57,183.48,59.38]
[1747181777723,5.4488,183.5,183.48,59.38]
[1747181778020,59.3,183.53,183.46,6.01638646]
[1747181779019,59.3,183.53,183.46,11.46608646]
[1747181779216,59.3,183.53,183.46,6.01638646]
[1747181779420,5.4491,183.49,183.46,6.01638646]
[1747181779820,118.58,183.53,183.46,6.01638646]
[1747181780620,5.4494,183.48,183.46,6.01638646]
[1747181780819,118.58,183.53,183.46,6.01638646]
[1747181781323,5.4495,183.48,183.46,6.01638646]
[1747181781525,118.58,183.53,183.46,6.01638646]
[1747181781822,5.449,183.5,183.46,6.01638646]
[1747181782021,59.3,183.52,183.47,5.4496]
[1747181782225,59.3,183.52,183.46,6.01638646]
[1747181782922,5.4493,183.49,183.46,6.01638646]
[1747181783317,59.3,183.52,183.46,6.01638646]
[1747181784827,5.4494,183.48,183.46,6.01638646]
[1747181785127,59.3,183.52,183.46,6.01638646]
[1747181785519,5.4496,183.47,183.46,6.01638646]
[1747181785727,59.3,183.52,183.46,6.01638646]
[1747181786025,59.28,183.54,183.46,6.01638646]
[1747181786225,118.58,183.54,183.46,6.01638646]
[1747181788826,5.4495,183.48,183.46,6.01638646]
[1747181789026,59.32,183.49,183.46,6.01638646]
[1747181789326,59.32,183.5,183.46,6.01638646]
[1747181789526,5.4496,183.47,183.46,6.01638646]
[1747181791233,5.4505,183.44,183.43,6.01638646]
[1747181791734,59.4,183.45,183.43,6.01638646]
[1747181792328,64.8502,183.45,183.43,6.01638646]
[1747181792834,5.4499,183.46,183.43,6.01638646]
[1747181794230,5.4502,183.45,183.43,6.01638646]
[1747181794428,59.52,183.48,183.43,6.01638646]
[1747181794734,5.4505,183.45,183.43,6.01638646]
[1747181794931,59.52,183.48,183.43,6.01638646]
[1747181795540,5.4504,183.45,183.43,6.01638646]
[1747181796238,59.52,183.48,183.43,6.01638646]
[1747181796538,59.52,183.51,183.43,6.01638646]
[1747181796739,59.56,183.52,183.44,61.0153]
[1747181796936,5.4489,183.5,183.46,5.4499]
[1747181797239,59.56,183.53,183.44,61.0153]
[1747181797537,5.4485,183.51,183.44,61.0153]
[1747181797739,59.28,183.54,183.44,61.0153]
[1747181798134,5.4484,183.51,183.44,61.0153]
[1747181798531,1.7047,183.59,183.5,5.4486]
[1747181798738,65.55638646,183.58,183.49,65.29638646]
[1747181798939,6.01638646,183.58,183.49,65.29638646]
[1747181799138,5.4475,183.55,183.51,5.4482]
[1747181799339,65.59638646,183.58,183.49,65.29638646]
[1747181799639,65.59638646,183.58,183.51,5.4483]
[1747181800139,5.4473,183.55,183.51,5.4483]
[1747181800537,65.59638646,183.58,183.51,5.4483]
[1747181800738,65.59638646,183.58,183.5,5.4487]
[1747181801043,65.59638646,183.58,183.49,65.29638646]
[1747181801739,5.4478,183.54,183.5,5.4485]
[1747181802038,65.59638646,183.58,183.5,5.4485]
[1747181802541,65.59638646,183.58,183.49,65.29638646]
[1747181802741,5.4486,183.51,183.49,65.29638646]
[1747181804837,5.4487,183.5,183.49,65.29638646]
[1747181805638,5.4487,183.5,183.49,6.01638646]
[1747181808739,5.4505,183.44,183.43,6.01638646]
[1747181810237,5.4505,183.44,183.43,3.18418646]
[1747181811844,5.4511,183.42,183.41,6.01638646]
[1747181812044,64.9311,183.42,183.41,6.01638646]
[1747181813246,5.452,183.39,183.38,6.01638646]
[1747181814137,5.4535,183.34,183.33,6.01638646]
[1747181820951,5.455,183.29,183.28,9.63527109]
[1747181822742,65.335,183.29,183.28,9.63527109]
[1747181823250,59.92,183.32,183.28,9.63527109]
[1747181823647,5.4547,183.31,183.28,9.63527109]
[1747181825455,119.28,183.34,183.28,9.63527109]
[1747181825846,5.4527,183.37,183.28,9.63527109]
[1747181826149,59.9,183.39,183.28,9.63527109]
[1747181826346,5.4544,183.31,183.28,9.63527109]
[1747181826543,0.96022541,183.38,183.28,15.09027109]
[1747181826744,0.96022541,183.38,183.28,9.63527109]
[1747181826952,5.4543,183.32,183.28,9.63527109]
[1747181827154,59.94,183.34,183.28,9.63527109]
[1747181828956,5.4538,183.33,183.29,5.4548]
[1747181829156,59.94,183.34,183.28,9.63527109]
[1747181829456,471.22,183.41,183.28,9.63527109]
[1747181829756,5.4529,183.36,183.32,5.4538]
[1747181830457,59.46,183.39,183.28,9.63527109]
[1747181830754,119.26,183.39,183.29,59.82]
[1747181830953,119.26,183.39,183.34,5.4534]
[1747181831354,0.94934119,183.5,183.32,3.611]
[1747181831549,59.82,183.43,183.32,3.611]
[1747181831750,59.82,183.43,183.33,1.7998]
[1747181831952,59.82,183.43,183.34,59.86]
[1747181832555,5.4513,183.42,183.39,5.4519]
[1747181832760,59.9,183.46,183.36,59.46]
[1747181832958,471.4,183.51,183.36,59.46]
[1747181833258,59.92,183.46,183.36,59.46]
[1747181833455,119.4,183.48,183.36,59.46]
[1747181833751,119.4,183.52,183.36,59.46]
[1747181833956,59.96,183.52,183.36,282.46]
[1747181834653,0.95897811,183.51,183.36,282.44]
[1747181834857,5.4519,183.4,183.36,59.44]
[1747181835057,60.1,183.42,183.36,59.44]
[1747181835255,60.08,183.42,183.36,59.44]
[1747181835960,5.4526,183.38,183.33,7.2535]
[1747181836150,60.08,183.42,183.33,7.2535]
[1747181836349,60.08,183.42,183.33,1.7998]
[1747181837357,60.08,183.42,183.34,5.4535]
[1747181837961,60.08,183.42,183.33,1.7998]
[1747181838463,65.5313,183.42,183.37,5.4523]
[1747181838661,60.08,183.42,183.37,5.4523]
[1747181838965,65.5311,183.42,183.38,5.452]
[1747181839263,60.08,183.42,183.38,5.452]
[1747181839464,65.5311,183.42,183.38,5.452]
[1747181839961,65.5311,183.42,183.36,60.06]
[1747181840462,5.4514,183.41,183.38,5.452]
[1747181840669,60.08,183.42,183.36,60.06]
[1747181841066,60.08,183.42,183.36,65.5128]
[1747181841670,5.4519,183.4,183.36,65.5128]
[1747181842067,5.4522,183.39,183.36,60.06]
[1747181842265,60.08,183.42,183.36,60.06]
[1747181842670,60.08,183.42,183.33,7.2535]
[1747181842865,60.08,183.42,183.32,63.671]
[1747181843075,5.4532,183.35,183.32,63.671]
[1747181843272,60.34,183.37,183.32,3.611]
[1747181843462,60.32,183.38,183.32,3.611]
[1747181843770,5.4522,183.39,183.32,3.611]
[1747181844165,5.4522,183.39,183.34,5.4534]
[1747181844360,5.4524,183.38,183.34,5.4534]
[1747181844970,60.32,183.4,183.33,60.06]
[1747181845171,60.06,183.45,183.33,60.06]
[1747181845371,60.22,183.46,183.33,60.06]
[1747181845868,5.4505,183.44,183.4,5.4514]
[1747181846365,5.4505,183.44,183.38,60.06]
[1747181846570,60.22,183.47,183.38,60.06]
[1747181846769,60.22,183.47,183.39,1.788]
[1747181846968,60.28,183.46,183.39,7.2399]
[1747181847267,60.28,183.46,183.39,1.788]
[1747181847467,5.4502,183.45,183.41,5.4512]
[1747181847668,60.28,183.46,183.41,5.4512]
[1747181848275,60.28,183.46,183.39,1.788]
[1747181848471,471.34,183.5,183.4,1.865]
[1747181848774,60.24,183.51,183.4,1.865]
[1747181848978,60.24,183.52,183.41,1.7282]
[1747181849170,60.24,183.52,183.42,60.22]
[1747181849369,5.4492,183.49,183.45,5.45]
[1747181850071,60.04,183.53,183.42,120.26]
[1747181850272,120.22,183.53,183.42,120.26]
[1747181850971,60.04,183.53,183.42,120.26]
[1747181851171,60.04,183.53,183.5,5.4485]
[1747181851371,5.4476,183.54,183.5,5.4485]
[1747181852580,5.4479,183.53,183.5,5.4485]
[1747181852779,5.4479,183.53,183.49,5.449]
[1747181853680,6.01638646,183.58,183.48,1.78]
[1747181853878,6.01638646,183.58,183.5,60.06]
[1747181854078,6.01638646,183.58,183.51,1.8874]
[1747181854378,6.01638646,183.58,183.52,60.04]
[1747181854774,5.447,183.56,183.52,60.04]
[1747181855181,5.447,183.56,183.52,65.4879]
[1747181855481,5.447,183.56,183.52,60.04]
[1747181856280,6.01638646,183.58,183.52,60.04]
[1747181856677,6.01638646,183.58,183.52,65.4881]
[1747181857584,5.4473,183.55,183.52,60.04]
[1747181857981,6.01638646,183.58,183.52,60.04]
[1747181858785,5.4472,183.56,183.52,65.488]
[1747181858984,6.01638646,183.58,183.52,60.04]
[1747181859285,5.4472,183.56,183.52,60.04]
[1747181859876,6.01638646,183.58,183.52,60.04]
[1747181860682,6.01638646,183.58,183.55,5.447]
[1747181861787,11.46278646,183.58,183.55,5.447]
[1747181862485,6.01638646,183.58,183.52,60.04]
[1747181863085,5.4473,183.55,183.52,60.04]
[1747181863280,6.01638646,183.58,183.52,60.04]
[1747181863481,65.91638646,183.58,183.52,60.04]
[1747181863681,5.4487,183.5,183.47,65.4494]
[1747181863881,65.91638646,183.58,183.47,65.4494]
[1747181865992,5.4486,183.51,183.47,65.4494]
[1747181867988,5.4482,183.52,183.48,7.2293]
[1747181869486,5.4482,183.52,183.49,5.449]
[1747181869689,66.03638646,183.58,183.48,1.78]
[1747181870186,66.03638646,183.58,183.48,61.8]
[1747181870384,66.03638646,183.58,183.51,5.4482]
[1747181870385,5.4475,183.55,183.51,5.4482]
[1747181870787,66.01638646,183.58,183.51,5.4482]
[1747181870989,5.4478,183.54,183.5,5.4486]
[1747181871191,66.01638646,183.58,183.5,5.4486]
[1747181871487,5.4486,183.51,183.48,61.8]
[1747181872087,5.4486,183.51,183.48,67.2492]
[1747181872590,5.4482,183.52,183.49,5.4489]
[1747181873084,5.4478,183.54,183.48,61.8]
[1747181873989,5.4473,183.55,183.48,61.8]
[1747181874291,66.01638646,183.58,183.48,61.8]
[1747181874679,5.4474,183.55,183.48,61.8]
[1747181874885,6.01638646,183.58,183.48,61.8]
[1747181876389,5.4471,183.56,183.48,61.8]
[1747181876590,6.01638646,183.58,183.48,61.8]
[1747181877892,6.01638646,183.58,183.56,5.4467]
[1747181879590,6.01638646,183.58,183.57,5.4466]
[1747181880285,6.01638646,183.58,183.56,5.4469]
[1747181880486,6.01638646,183.58,183.55,61.7631]
[1747181881489,6.01638646,183.6,183.55,61.7631]
[1747181881692,6.01638646,183.69,183.55,61.7631]
[1747181881887,11.45968646,183.69,183.55,284.7631]
[1747181882087,6.01638646,183.69,183.55,284.7631]
[1747181882487,6.01638646,183.69,183.64,5.4444]
[1747181883088,6.01638646,183.69,183.63,5.4448]
[1747181883279,6.01638646,183.69,183.62,60.02]
[1747181883480,6.01638646,183.69,183.65,5.4442]
[1747181883785,6.01638646,183.69,183.62,60.02]
[1747181883986,6.01638646,183.69,183.68,5.4434]
[1747181887890,61.7338,183.81,183.67,60.0]
[1747181888083,0.95902246,183.79,183.67,60.0]
[1747181888287,120.26,183.81,183.67,60.0]
[1747181888983,120.26,183.81,183.69,5.4428]
[1747181888984,0.95906135,183.8,183.69,5.4428]
[1747181889293,0.95906135,183.8,183.65,60.0]
[1747181889592,5.4431,183.69,183.65,65.4442]
[1747181890092,60.34,183.73,183.65,60.0]
[1747181890294,60.34,183.73,183.61,120.28]
[1747181890697,60.34,183.73,183.63,5.4446]
[1747181891591,60.34,183.73,183.62,5.4451]
[1747181891893,5.4439,183.67,183.62,5.4451]
[1747181892088,5.4439,183.67,183.63,5.4448]
[1747181892290,60.0,183.75,183.61,120.28]
[1747181892486,5.4428,183.71,183.67,5.4436]
[1747181892791,60.34,183.78,183.66,120.32]
[1747181892987,0.95929373,183.77,183.67,3.5707]
[1747181893193,60.34,183.78,183.66,120.32]
[1747181893393,0.95928415,183.77,183.66,120.32]
[1747181893594,0.95928415,183.77,183.66,125.7638]
[1747181893897,0.95928415,183.77,183.66,120.32]
[1747181894392,5.4429,183.7,183.67,5.4436]
[1747181894595,5.4429,183.7,183.66,120.32]
[1747181895096,5.4429,183.7,183.66,125.7638]
[1747181895292,60.3,183.73,183.66,59.98]
[1747181895493,60.3,183.73,183.62,3.5707]
[1747181895494,60.3,183.73,183.62,63.5507]
[1747181895694,1.8257,183.72,183.62,67.1833]
[1747181895999,1.8257,183.72,183.62,59.98]
[1747181896195,1.8291,183.71,183.62,59.98]
[1747181896496,5.4444,183.65,183.62,59.98]
[1747181896886,60.32,183.68,183.62,59.98]
[1747181897194,5.4449,183.63,183.58,59.98]
[1747181898096,5.4449,183.63,183.59,5.446]
[1747181898399,120.3,183.68,183.59,5.446]
[1747181898596,62.1057,183.72,183.58,59.98]
[1747181898796,60.42,183.71,183.58,59.98]
[1747181899200,60.42,183.71,183.63,5.4448]
[1747181899794,5.4439,183.67,183.63,5.4448]
[1747181899996,60.42,183.71,183.62,5.4451]
[1747181900197,60.42,183.71,183.58,59.98]
[1747181900396,60.42,183.71,183.58,65.4263]
[1747181900587,3.4737,183.7,183.58,59.98]
[1747181900990,3.4737,183.7,183.6,5.4457]
[1747181901285,3.4737,183.7,183.58,59.98]
[1747181901485,3.4737,183.7,183.61,5.4453]
[1747181901693,3.4737,183.7,183.58,59.98]
[1747181902692,5.4443,183.65,183.58,59.98]
[1747181903100,3.4737,183.7,183.58,59.98]
[1747181903299,3.4737,183.7,183.61,5.4453]
[1747181903499,62.1057,183.72,183.58,59.98]
[1747181903795,5.4424,183.72,183.59,61.6]
[1747181903996,61.66,183.77,183.59,284.6]
[1747181904299,5.4417,183.74,183.71,5.4424]
[1747181905298,61.66,183.77,183.68,60.28]
[1747181906200,61.66,183.76,183.68,60.28]
[1747181908197,60.28,183.75,183.64,1.8764]
[1747181908398,62.0969,183.75,183.61,60.28]
[1747181908606,0.95927405,183.74,183.61,60.28]
[1747181909001,62.0969,183.75,183.61,60.28]
[1747181909303,0.95925982,183.74,183.64,5.4445]
[1747181909507,0.95925982,183.74,183.61,60.28]
[1747181909805,5.4432,183.69,183.65,5.4442]
[1747181910104,61.58,183.73,183.61,60.28]
[1747181911007,5.4437,183.68,183.63,5.4446]
[1747181911607,61.58,183.73,183.62,5.4451]
[1747181912006,5.4439,183.67,183.61,60.28]
[1747181912202,61.58,183.73,183.63,5.4447]
[1747181912403,0.95935647,183.72,183.63,5.4447]
[1747181912603,5.4433,183.69,183.61,60.28]
[1747181912803,60.28,183.75,183.61,60.28]
[1747181913005,61.5,183.74,183.61,60.28]
[1747181913206,61.48,183.77,183.61,283.28]
[1747181913607,5.4428,183.71,183.61,283.28]
[1747181913803,3.6677,183.78,183.61,283.28]
[1747181914006,60.28,183.84,183.62,10.8902]
[1747181914207,0.95951371,183.83,183.62,233.8902]
[1747181914507,61.74,183.82,183.74,5.4414]
[1747181915209,5.4406,183.78,183.74,5.4414]
[1747181915805,61.74,183.82,183.73,60.28]
[1747181916411,5.4414,183.75,183.73,60.28]
[1747181918014,61.74,183.82,183.73,60.28]
[1747181918015,5.4416,183.74,183.73,60.28]
[1747181918213,60.28,183.84,183.67,3.5785]
[1747181918214,61.5,183.77,183.69,60.26]
[1747181918413,61.52,183.76,183.69,60.26]
[1747181918814,5.4424,183.72,183.69,65.7031]
[1747181919114,61.52,183.76,183.69,60.26]
[1747181919511,5.4424,183.72,183.69,60.26]
[1747181919916,61.52,183.76,183.69,60.26]
[1747181920116,61.52,183.76,183.63,1.7893]
[1747181920310,61.52,183.76,183.64,60.26]
[1747181920811,61.52,183.76,183.63,1.7893]
[1747181921013,0.95899877,183.75,183.63,60.26]
[1747181921318,5.4444,183.65,183.63,60.26]
[1747181921615,5.4444,183.65,183.61,5.4452]
[1747181921813,61.52,183.68,183.61,5.4452]
[1747181922216,61.52,183.68,183.62,5.4451]
[1747181925620,61.52,183.73,183.6,1.8691]
[1747181926724,5.4445,183.65,183.61,5.4454]
[1747181927119,5.4445,183.65,183.6,1.8691]
[1747181927321,5.444,183.66,183.63,5.4449]
[1747181927616,5.444,183.66,183.6,1.8691]
[1747181927813,60.28,183.74,183.61,61.5]
[1747181928018,61.54,183.73,183.62,1.8606]
[1747181928419,5.4439,183.67,183.64,5.4445]
[1747181929221,5.4442,183.66,183.63,5.4448]
[1747181929820,5.4444,183.65,183.62,1.8606]
[1747181930219,61.44,183.71,183.62,1.8606]
[1747181930615,61.44,183.71,183.59,60.26]
[1747181930821,61.44,183.71,183.54,61.48]
[1747181931018,0.95834305,183.7,183.54,61.48]
[1747181931218,61.48,183.69,183.54,61.48]
[1747181931522,5.4472,183.55,183.54,61.48]
[1747181932024,5.447,183.56,183.54,61.48]
[1747181932825,5.4466,183.58,183.54,61.48]
[1747181933024,61.46,183.6,183.54,61.48]
[1747181933324,5.4467,183.57,183.54,66.9275]
[1747181933721,61.46,183.6,183.54,61.48]
[1747181934424,5.4469,183.57,183.54,61.48]
[1747181934928,61.46,183.6,183.54,61.48]
[1747181935132,5.4471,183.56,183.54,61.48]
[1747181935932,5.4472,183.55,183.54,61.48]
[1747181936131,61.46,183.6,183.51,5.4483]
[1747181936327,61.46,183.6,183.5,124.6973]
[1747181936930,5.4463,183.59,183.5,124.6973]
[1747181937121,470.66,183.67,183.5,124.6973]
[1747181937323,532.16,183.67,183.5,347.6973]
[1747181937523,61.52,183.66,183.5,347.6973]
[1747181937933,5.446,183.6,183.56,5.4469]
[1747181938130,5.446,183.6,183.54,61.5]
[1747181938433,61.52,183.66,183.54,61.5]
[1747181938632,5.4455,183.61,183.58,5.4461]
[1747181938833,5.4455,183.61,183.55,3.5397]
[1747181939135,5.4455,183.61,183.57,5.4466]
[1747181939934,5.4455,183.61,183.58,5.4463]
[1747181940235,532.16,183.67,183.55,65.0197]
[1747181940436,122.96,183.67,183.55,65.0197]
[1747181941040,122.96,183.67,183.59,5.4459]
[1747181941234,5.4451,183.63,183.55,65.0197]
[1747181941437,122.96,183.67,183.55,65.0197]
[1747181942034,122.96,183.67,183.55,3.5397]
[1747181942435,0.95828879,183.66,183.55,3.5397]
[1747181942636,2.78798879,183.66,183.55,3.5397]
[1747181942830,1.8297,183.66,183.55,3.5397]
[1747181943239,5.4462,183.59,183.56,5.4469]
[1747181943442,61.42,183.62,183.55,3.5397]
[1747181943632,61.4,183.65,183.55,3.5397]
[1747181943937,61.4,183.65,183.58,5.4461]
[1747181944438,5.4455,183.61,183.58,5.4461]
[1747181944640,61.4,183.65,183.59,5.446]
[1747181944940,61.4,183.65,183.55,3.5397]
[1747181945239,61.4,183.65,183.57,5.4466]
[1747181945634,61.4,183.65,183.55,3.5397]
[1747181945933,61.4,183.65,183.53,61.5]
[1747181946137,61.4,183.65,183.57,5.4466]
[1747181946339,61.4,183.65,183.53,61.5]
[1747181947136,2.82181867,183.64,183.53,61.5]
[1747181947332,1.8646,183.64,183.54,5.4473]
[1747181947538,1.8646,183.64,183.53,61.5]
[1747181948334,5.4459,183.6,183.53,61.5]
[1747181948541,1.8646,183.64,183.53,61.5]
[1747181948740,0.95735711,183.63,183.53,61.5]
[1747181949042,61.5,183.62,183.54,5.4475]
[1747181949537,5.4465,183.58,183.54,5.4475]
[1747181949739,61.44,183.6,183.53,66.9477]
[1747181949943,61.44,183.6,183.53,61.5]
[1747181950132,61.44,183.6,183.51,3.6934]
[1747181950531,61.44,183.6,183.51,1.8245]
[1747181951135,61.44,183.6,183.52,5.4481]
[1747181951538,5.4469,183.57,183.53,5.4478]
[1747181951752,61.36,183.61,183.5,1.7173]
[1747181952035,122.86,183.62,183.52,1.7549]
[1747181952241,5.4463,183.59,183.55,5.447]
[1747181953142,5.4458,183.6,183.52,1.7549]
[1747181953643,5.4458,183.6,183.56,5.4467]
[1747181953847,3.5472,183.69,183.54,61.52]
[1747181954036,122.8,183.68,183.55,1.7666]
[1747181955146,122.8,183.68,183.59,5.446]
[1747181955344,0.95791251,183.67,183.55,1.7666]
[1747181955645,122.8,183.68,183.57,5.4466]
[1747181955943,122.8,183.68,183.55,1.7666]
[1747181956144,0.95822706,183.67,183.55,1.7666]
[1747181956547,122.8,183.68,183.55,1.7666]
[1747181956747,5.4451,183.63,183.55,1.7666]
[1747181957137,61.32,183.67,183.55,1.7666]
[1747181957341,61.32,183.67,183.52,63.2749]
[1747181957649,0.95886908,183.66,183.52,63.2749]
[1747181958251,0.95886908,183.66,183.52,68.7228]
[1747181958450,1.8098,183.65,183.52,68.7228]
[1747181958848,5.4473,183.55,183.52,63.2749]
[1747181959047,61.24,183.59,183.52,61.52]
[1747181959248,61.24,183.58,183.52,61.52]
[1747181959547,5.4473,183.55,183.52,66.968]
[1747181959854,5.4473,183.55,183.52,61.52]
[1747181960051,61.24,183.58,183.52,61.52]
[1747181963652,5.4477,183.54,183.52,61.52]
[1747181963854,61.24,183.58,183.52,61.52]
[1747181964050,5.4458,183.6,183.52,61.52]
[1747181964756,61.24,183.65,183.53,61.4]
[1747181964953,61.4,183.64,183.53,61.4]
[1747181965154,5.4467,183.57,183.53,66.8478]
[1747181965453,61.56,183.59,183.52,61.52]
[1747181965751,5.4478,183.54,183.52,61.52]
[1747181967150,5.4478,183.53,183.52,61.52]
[1747181967347,5.4478,183.53,183.5,1.7173]
[1747181967548,61.44,183.57,183.5,1.7173]
[1747181967950,61.24,183.6,183.5,1.7173]
[1747181968154,61.46,183.61,183.51,61.46]
[1747181968448,5.4463,183.59,183.51,61.46]
[1747181968955,5.4463,183.59,183.55,5.447]
[1747181969156,5.4463,183.59,183.54,61.24]
[1747181969659,63.0634,183.64,183.54,61.24]
[1747181969660,61.24,183.64,183.54,61.24]
[1747181969855,61.54,183.63,183.54,61.24]
[1747181970260,5.4453,183.62,183.54,61.24]
[1747181970456,61.54,183.63,183.54,61.24]
[1747181970656,61.54,183.63,183.55,1.7958]
[1747181971258,61.54,183.63,183.56,1.7857]
[1747181971458,66.985,183.63,183.56,1.7857]
[1747181971758,66.985,183.63,183.59,5.4458]
[1747181972363,5.4452,183.62,183.59,5.4458]
[1747181972559,61.54,183.63,183.55,1.7958]
[1747181972763,5.446,183.6,183.55,1.7958]
[1747181972965,5.446,183.6,183.56,5.4467]
[1747181973163,5.446,183.6,183.55,1.7958]
[1747181973367,5.4455,183.61,183.55,1.7958]
[1747181973663,61.54,183.63,183.58,5.4461]
[1747181973863,5.4457,183.61,183.55,1.7958]
[1747181974566,5.4459,183.6,183.55,1.7958]
[1747181974965,61.54,183.63,183.55,1.7958]
[1747181975568,5.446,183.6,183.55,1.7958]
[1747181975772,122.78,183.63,183.54,61.24]
[1747181976771,5.4466,183.58,183.54,61.24]
[1747181977469,5.4467,183.57,183.54,61.24]
[1747181977671,122.78,183.63,183.54,61.24]
[1747181978074,122.78,183.63,183.54,66.6875]
[1747181978573,122.78,183.63,183.54,61.24]
[1747181979472,5.4465,183.58,183.54,61.24]
[1747181980377,14.4336,183.69,183.54,61.24]
[1747181980671,123.08,183.68,183.54,61.24]
[1747181980873,5.4457,183.61,183.57,5.4466]
[1747181981074,123.08,183.68,183.57,5.4466]
[1747181981374,0.95838646,183.67,183.54,61.24]
[1747181981575,0.95838646,183.67,183.55,5.4472]
[1747181981777,1.7403,183.66,183.55,5.4472]
[1747181982077,0.95838646,183.65,183.54,61.24]
[1747181982276,5.4461,183.59,183.56,5.4469]
[1747181982676,61.86,183.63,183.56,5.4469]
[1747181982880,5.4462,183.59,183.56,5.4469]
[1747181983083,61.86,183.63,183.55,5.4471]
[1747181983473,61.86,183.63,183.54,61.24]
[1747181983673,123.1,183.63,183.54,61.24]
[1747181984778,123.1,183.63,183.56,5.4467]